fUSD/lending_fUSD_20260510
["ID","MTS","AMOUNT","RATE_DAILY","PERIOD"]
[421959930,1778373050000,-151.0,0.00041832,120]
[421959917,1778373050000,-744.315252,0.00041832,120]
[421959894,1778373050000,-3000.0,0.00041831,120]
[421959912,1778373050000,-151.0,0.00041832,120]
[421959896,1778373050000,-300.0,0.00041831,30]
[421959905,1778373050000,-151.0,0.00041832,120]
[421959876,1778373050000,-3000.0,0.00041831,120]
[421959879,1778373050000,-3000.0,0.00041831,120]
[421959880,1778373050000,-3000.0,0.00041831,120]
[421959891,1778373050000,-3000.0,0.00041831,120]
[421959882,1778373050000,-3000.0,0.00041831,120]
[421959883,1778373050000,-3000.0,0.00041831,120]
[421959885,1778373050000,-3000.0,0.00041831,120]
[421959884,1778373050000,-3000.0,0.00041831,120]
[421959881,1778373050000,-3000.0,0.00041831,120]
[421959887,1778373050000,-3000.0,0.00041831,120]
[421959890,1778373050000,-3000.0,0.00041831,120]
[421959877,1778373050000,-3000.0,0.00041831,120]
[421959886,1778373050000,-3000.0,0.00041831,120]
[421959889,1778373050000,-3000.0,0.00041831,120]
[421959893,1778373050000,-3000.0,0.00041831,120]
[421959903,1778373050000,-151.0,0.00041832,120]
[421959904,1778373050000,-267.883486,0.00041832,120]
[421959899,1778373050000,-151.0,0.00041832,120]
[421959900,1778373050000,-151.0,0.00041832,120]
[421959892,1778373050000,-3000.0,0.00041831,120]
[421959898,1778373050000,-350448.32496073,0.00041832,49]
[421959895,1778373050000,-3000.0,0.00041831,120]
[421959901,1778373050000,-151.0,0.00041832,120]
[421959888,1778373050000,-3000.0,0.00041831,120]
[421959902,1778373050000,-151.0,0.00041832,120]
[421959952,1778373051000,-706.182308,0.00041832,7]
[421959954,1778373051000,-706.182304,0.00041832,7]
[421959947,1778373051000,-706.182308,0.00041832,7]
[421959949,1778373051000,-706.182308,0.00041832,7]
[421959948,1778373051000,-706.182308,0.00041832,7]
[421959950,1778373051000,-706.182308,0.00041832,7]
[421959965,1778373051000,-151.0,0.00041832,120]
[421959967,1778373051000,-6182.986032,0.00041832,14]
[421959946,1778373051000,-208.261278,0.00041832,28]
[421959951,1778373051000,-706.182308,0.00041832,7]
[421959953,1778373051000,-706.182308,0.00041832,7]
[421959934,1778373051000,-151.0,0.00041832,120]
[421959942,1778373051000,-208.261282,0.00041832,28]
[421959944,1778373051000,-208.261282,0.00041832,28]
[421959941,1778373051000,-208.261282,0.00041832,28]
[421959939,1778373051000,-208.261282,0.00041832,28]
[421959937,1778373051000,-342.8206096,0.00041832,3]
[421959936,1778373051000,-188.669471,0.00041832,120]
[421959940,1778373051000,-208.261282,0.00041832,28]
[421959932,1778373051000,-151.0,0.00041832,120]
[421959935,1778373051000,-151.0,0.00041832,120]
[421959938,1778373051000,-228.54707307,0.00041832,3]
[421959933,1778373051000,-151.0,0.00041832,120]
[421959943,1778373051000,-208.261282,0.00041832,28]
[421959955,1778373051000,-1252.270047,0.00041832,30]
[421959945,1778373051000,-208.261282,0.00041832,28]
[421959966,1778373051000,-151.0,0.00041832,120]
[421959956,1778373051000,-1252.270047,0.00041832,30]
[421959980,1778373051000,-151.0,0.00041832,120]
[421959982,1778373051000,-151.0,0.00041832,120]
[421959983,1778373051000,-151.0,0.00041832,120]
[421959984,1778373051000,-849.64639,0.00041832,120]
[421959970,1778373051000,-151.0,0.00041832,120]
[421959976,1778373051000,-849.64639,0.00041832,120]
[421959978,1778373051000,-6182.986032,0.00041832,14]
[421959974,1778373051000,-151.0,0.00041832,120]
[421959969,1778373051000,-151.0,0.00041832,120]
[421959973,1778373051000,-6182.986032,0.00041832,14]
[421959975,1778373051000,-6182.986032,0.00041832,14]
[421959958,1778373051000,-1252.270047,0.00041832,30]
[421959972,1778373051000,-151.0,0.00041832,120]
[421959977,1778373051000,-849.64639,0.00041832,120]
[421959979,1778373051000,-151.0,0.00041832,120]
[421959971,1778373051000,-151.0,0.00041832,120]
[421959964,1778373051000,-151.0,0.00041832,120]
[421959959,1778373051000,-1252.270047,0.00041832,30]
[421959962,1778373051000,-1252.270041,0.00041832,30]
[421959957,1778373051000,-1252.270047,0.00041832,30]
[421959963,1778373051000,-151.0,0.00041832,120]
[421959960,1778373051000,-1252.270047,0.00041832,30]
[421959961,1778373051000,-1252.270047,0.00041832,30]
[421959968,1778373051000,-6182.986032,0.00041832,14]
[421960088,1778373052000,-816916.18000428,0.00041832,2]
[421960095,1778373052000,-4331.45931913,0.00041832,90]
[421960087,1778373052000,-5015.90913849,0.00041832,2]
[421960092,1778373052000,-15327.99769626,0.00041832,2]
[421960080,1778373052000,-15889.53468877,0.00041832,2]
[421960082,1778373052000,-3511.9684069,0.00041832,2]
[421960084,1778373052000,-7426.69025674,0.00041832,120]
[421960077,1778373052000,-15867.08886681,0.00041832,3]
[421960076,1778373052000,-222142.36652311,0.00041832,2]
[421960078,1778373052000,-58871.26599578,0.00041832,2]
[421960086,1778373052000,-15382.30322981,0.00041832,3]
[421960090,1778373052000,-10991.65315726,0.00041832,2]
[421960094,1778373052000,-7991.66774874,0.00041832,2]
[421960093,1778373052000,-6000.0,0.00041832,2]
[421960083,1778373052000,-23515.23662033,0.00041832,2]
[421960098,1778373052000,-12558.94384618,0.00041832,2]
[421960103,1778373052000,-5838.82744754,0.00041832,2]
[421960096,1778373052000,-3923.92472922,0.00041832,2]
[421960100,1778373052000,-146291.20466381,0.00041832,2]
[421960102,1778373052000,-20825.86536905,0.00041832,2]
[421960099,1778373052000,-30876.02774835,0.00041832,2]
[421960097,1778373052000,-15192.60696379,0.00041832,2]
[421960101,1778373052000,-20000.0,0.00041832,120]
[421960089,1778373052000,-15184.40000995,0.00041832,2]
[421960081,1778373052000,-9484.33863841,0.00041832,2]
[421960067,1778373052000,-500.0,0.00041832,120]
[421960075,1778373052000,-5325.25891761,0.00041832,2]
[421960054,1778373052000,-9411.88,0.00041832,14]
[421960052,1778373052000,-9411.88,0.00041832,14]
[421960060,1778373052000,-9412.02909211,0.00041832,14]
[421960056,1778373052000,-9411.88,0.00041832,14]
[421960057,1778373052000,-9411.88,0.00041832,14]
[421960058,1778373052000,-9411.88,0.00041832,14]
[421960061,1778373052000,-5000.0,0.00041832,60]
[421960053,1778373052000,-9411.88,0.00041832,14]
[421960050,1778373052000,-9411.88,0.00041832,14]
[421960051,1778373052000,-9411.88,0.00041832,14]
[421960055,1778373052000,-9411.88,0.00041832,14]
[421960059,1778373052000,-9411.88,0.00041832,14]
[421960062,1778373052000,-500.0,0.00041832,120]
[421960063,1778373052000,-500.0,0.00041832,120]
[421960064,1778373052000,-500.0,0.00041832,120]
[421960070,1778373052000,-172210.05015831,0.00041832,2]
[421960073,1778373052000,-10972.64463489,0.00041832,3]
[421960068,1778373052000,-454.87773318,0.00041832,120]
[421960066,1778373052000,-500.0,0.00041832,120]
[421960072,1778373052000,-125301.67697598,0.00041832,2]
[421960065,1778373052000,-500.0,0.00041832,120]
[421960074,1778373052000,-52272.74399682,0.00041832,2]
[421960106,1778373052000,-5184.96928412,0.00041832,60]
[421960071,1778373052000,-650879.69408965,0.00041832,2]
[421960069,1778373052000,-207408.06939662,0.00041832,2]
[421960079,1778373052000,-40144.26983692,0.00041832,60]
[421960104,1778373052000,-12971.56001853,0.00041832,2]
[421960085,1778373052000,-13177.1985769,0.00041832,2]
[421960107,1778373052000,-20000.0,0.00041832,2]
[421960138,1778373052000,-3470.86,0.00041832,120]
[421960139,1778373052000,-3470.86,0.00041832,120]
[421960135,1778373052000,-3470.86,0.00041832,120]
[421960136,1778373052000,-3470.86,0.00041832,120]
[421960137,1778373052000,-3470.86,0.00041832,120]
[421960140,1778373052000,-3471.0600006,0.00041832,120]
[421960145,1778373052000,-500.0,0.00041832,120]
[421960146,1778373052000,-500.0,0.00041832,120]
[421960149,1778373052000,-20000.0,0.00041832,120]
[421960147,1778373052000,-20000.0,0.00041832,120]
[421960144,1778373052000,-4774.0,0.00041832,90]
[421960132,1778373052000,-3470.86,0.00041832,120]
[421960143,1778373052000,-5226.0,0.00041832,90]
[421960150,1778373052000,-20000.0,0.00041832,120]
[421960152,1778373052000,-206914.70017857,0.00041832,2]
[421960151,1778373052000,-14664.443205,0.00041832,120]
[421960158,1778373052000,-540.63849555,0.00041832,120]
[421960157,1778373052000,-500.0,0.00041832,120]
[421960154,1778373052000,-500.0,0.00041832,120]
[421960153,1778373052000,-500.0,0.00041832,120]
[421960159,1778373052000,-1368.999999,0.00041832,3]
[421960156,1778373052000,-500.0,0.00041832,120]
[421960160,1778373052000,-2791.27243772,0.00041832,120]
[421960105,1778373052000,-13706.33293334,0.00041832,2]
[421960148,1778373052000,-20000.0,0.00041832,120]
[421960142,1778373052000,-5226.0,0.00041832,60]
[421960155,1778373052000,-500.0,0.00041832,120]
[421960134,1778373052000,-3470.86,0.00041832,120]
[421960130,1778373052000,-3470.86,0.00041832,120]
[421960118,1778373052000,-3470.86,0.00041832,120]
[421960116,1778373052000,-152.0,0.00041832,120]
[421960117,1778373052000,-3470.86,0.00041832,120]
[421960110,1778373052000,-5419.49221903,0.00041832,2]
[421960109,1778373052000,-21057.01440114,0.00041832,3]
[421960111,1778373052000,-5016.83068812,0.00041832,2]
[421960114,1778373052000,-4165.04,0.00041832,120]
[421960112,1778373052000,-4165.04,0.00041832,120]
[421960115,1778373052000,-4165.04,0.00041832,120]
[421960113,1778373052000,-4165.04,0.00041832,120]
[421960108,1778373052000,-10000.0,0.00041832,3]
[421960122,1778373052000,-3470.86,0.00041832,120]
[421960091,1778373052000,-174602.76288747,0.00041832,2]
[421960129,1778373052000,-3470.86,0.00041832,120]
[421960133,1778373052000,-3470.86,0.00041832,120]
[421960141,1778373052000,-2957.0,0.00041832,72]
[421960131,1778373052000,-3470.86,0.00041832,120]
[421960125,1778373052000,-3470.86,0.00041832,120]
[421960123,1778373052000,-3470.86,0.00041832,120]
[421960121,1778373052000,-3470.86,0.00041832,120]
[421960120,1778373052000,-3470.86,0.00041832,120]
[421960128,1778373052000,-3470.86,0.00041832,120]
[421960124,1778373052000,-3470.86,0.00041832,120]
[421960126,1778373052000,-3470.86,0.00041832,120]
[421960119,1778373052000,-3470.86,0.00041832,120]
[421960127,1778373052000,-3470.86,0.00041832,120]
[421960173,1778373053000,-384.65,0.00026033,3]
[421960177,1778373053000,-166.46,0.00026575,2]
[421960180,1778373053000,-204.66,0.0002685,4]
[421960181,1778373053000,-166.48,0.00027397,30]
[421960179,1778373053000,-298.34,0.0002685,4]
[421960176,1778373053000,-166.45,0.00026527,30]
[421960172,1778373053000,-166.45,0.00025753,30]
[421960171,1778373053000,-503.0,0.00025215,2]
[421960170,1778373053000,-166.45,0.00025205,7]
[421960168,1778373053000,-503.0,0.00024397,2]
[421960167,1778373053000,-511.88832914,0.00027397,10]
[421960166,1778373053000,-166.45,0.00026479,7]
[421960174,1778373053000,-118.35,0.00026033,3]
[421960163,1778373053000,-24441.70087054,0.00041832,2]
[421960162,1778373053000,-1119.0,0.00041832,30]
[421960164,1778373053000,-53.63113427,0.00041832,2]
[421960161,1778373053000,-1115.0,0.00041832,30]
[421960169,1778373053000,-166.45,0.00024658,2]
[421960165,1778373053000,-166.45,0.00026431,2]
[421960178,1778373053000,-166.45,0.00026849,7]
[421960182,1778373053000,-3487.28167086,0.00027397,10]
[421960198,1778373053000,-849.64639,0.00041096,120]
[421960197,1778373053000,-526.35006308,0.00037671,2]
[421960175,1778373053000,-166.45,0.00026301,2]
[421960200,1778373053000,-219.10599283,0.00041096,120]
[421960194,1778373053000,-1222.0,0.00035895,2]
[421960196,1778373053000,-598.14907592,0.00037671,2]
[421960199,1778373053000,-849.64639,0.00041096,120]
[421960191,1778373053000,-503.0,0.00032574,10]
[421960195,1778373053000,-853.29787158,0.00037671,2]
[421960192,1778373053000,-227.76884048,0.00033392,11]
[421960193,1778373053000,-275.23115952,0.00033392,11]
[421960183,1778373053000,-233.701847,0.000274,7]
[421960185,1778373053000,-503.0,0.00028486,6]
[421960189,1778373053000,-300.0,0.00031456,2]
[421960188,1778373053000,-503.0,0.00030939,8]
[421960187,1778373053000,-503.0,0.00030121,7]
[421960186,1778373053000,-503.0,0.00029303,7]
[421960184,1778373053000,-503.0,0.00027668,5]
[421960190,1778373053000,-503.0,0.00031756,9]
[421960204,1778373292000,357.74268408,9.994e-05,2]
[421960205,1778373319000,289.38153281,9.993e-05,2]
[421960206,1778373404000,7273.020196,9.991e-05,2]
[421960210,1778373593000,2195.1,9.915e-05,2]
[421960211,1778373643000,417.36646475,9.994e-05,2]
[421960212,1778373700000,3625.72,9.901e-05,2]
[421960213,1778373727000,1852.42,9.911e-05,2]
[421960214,1778373764000,11460.35,9.877e-05,2]
[421960217,1778373871000,1543.67,9.776e-05,2]
[421960218,1778373893000,500.0,9.682e-05,2]
[421960219,1778373906000,150.0,9.247e-05,2]
[421960221,1778373907000,150.0,9.932e-05,2]
[421960220,1778373907000,150.0,9.589e-05,2]
[421960223,1778373912000,150.0,9.247e-05,2]
[421960222,1778373912000,150.0,9.247e-05,2]
[421960230,1778373921000,150.0,9.467e-05,2]
[421960229,1778373921000,150.0,9.43e-05,2]
[421960228,1778373921000,150.0,9.393e-05,2]
[421960227,1778373921000,150.0,9.357e-05,2]
[421960225,1778373921000,150.0,9.283e-05,2]
[421960226,1778373921000,150.0,9.32e-05,2]
[421960224,1778373921000,150.0,9.247e-05,2]
[421960231,1778373922000,150.0,9.503e-05,2]
[421960233,1778373922000,150.0,9.577e-05,2]
[421960234,1778373922000,150.0,9.614e-05,2]
[421960235,1778373922000,150.0,9.65e-05,2]
[421960236,1778373922000,150.0,9.687e-05,2]
[421960232,1778373922000,150.0,9.54e-05,2]
[421960237,1778373922000,150.0,9.724e-05,2]
[421960239,1778373922000,150.0,9.797e-05,2]
[421960240,1778373922000,150.0,9.834e-05,2]
[421960241,1778373922000,150.0,9.87e-05,2]
[421960243,1778373922000,150.0,9.944e-05,2]
[421960242,1778373922000,150.0,9.907e-05,2]
[421960238,1778373922000,150.0,9.76e-05,2]
[421960245,1778373923000,155.89544001,9.247e-05,2]
[421960246,1778373923000,155.89544001,9.257e-05,2]
[421960244,1778373923000,150.0,9.98e-05,2]
[421960247,1778373924000,155.89544001,9.267e-05,2]
[421960249,1778373924000,155.89544001,9.288e-05,2]
[421960248,1778373924000,155.89544001,9.278e-05,2]
[421960250,1778373924000,155.89544001,9.298e-05,2]
[421960251,1778373924000,155.89544001,9.309e-05,2]
[421960252,1778373924000,155.89544001,9.319e-05,2]
[421960256,1778373924000,155.89544001,9.361e-05,2]
[421960254,1778373924000,155.89544001,9.34e-05,2]
[421960255,1778373924000,155.89544001,9.35e-05,2]
[421960257,1778373924000,155.89544001,9.371e-05,2]
[421960258,1778373924000,155.89544001,9.381e-05,2]
[421960259,1778373924000,155.89544001,9.392e-05,2]
[421960253,1778373924000,155.89544001,9.33e-05,2]
[421960262,1778373925000,155.89544001,9.433e-05,2]
[421960260,1778373925000,155.89544001,9.413e-05,2]
[421960263,1778373925000,155.89544001,9.444e-05,2]
[421960261,1778373925000,155.89544001,9.423e-05,2]
[421960265,1778373925000,155.89544001,9.402e-05,2]
[421960267,1778373925000,155.89544001,9.475e-05,2]
[421960264,1778373925000,155.89544001,9.454e-05,2]
[421960266,1778373925000,155.89544001,9.465e-05,2]
[421960268,1778373925000,155.89544001,9.485e-05,2]
[421960269,1778373926000,155.89544001,9.496e-05,2]
[421960270,1778373926000,155.89544001,9.506e-05,2]
[421960272,1778373926000,155.89544001,9.527e-05,2]
[421960271,1778373926000,155.89544001,9.516e-05,2]
[421960275,1778373926000,155.89544001,9.558e-05,2]
[421960273,1778373926000,155.89544001,9.537e-05,2]
[421960277,1778373926000,155.89544001,9.579e-05,2]
[421960278,1778373926000,155.89544001,9.589e-05,2]
[421960280,1778373926000,155.89544001,9.61e-05,2]
[421960279,1778373926000,155.89544001,9.599e-05,2]
[421960281,1778373926000,155.89544001,9.62e-05,2]
[421960282,1778373926000,155.89544001,9.631e-05,2]
[421960276,1778373926000,155.89544001,9.568e-05,2]
[421960274,1778373926000,155.89544001,9.548e-05,2]
[421960288,1778373927000,155.89544001,9.693e-05,2]
[421960283,1778373927000,155.89544001,9.641e-05,2]
[421960284,1778373927000,155.89544001,9.651e-05,2]
[421960286,1778373927000,155.89544001,9.672e-05,2]
[421960285,1778373927000,155.89544001,9.662e-05,2]
[421960287,1778373927000,155.89544001,9.682e-05,2]
[421960289,1778373927000,155.89544001,9.703e-05,2]
[421960291,1778373927000,155.89544001,9.724e-05,2]
[421960292,1778373927000,155.89544001,9.734e-05,2]
[421960293,1778373927000,155.89544001,9.745e-05,2]
[421960294,1778373927000,155.89544001,9.755e-05,2]
[421960296,1778373927000,155.89544001,9.776e-05,2]
[421960295,1778373927000,155.89544001,9.765e-05,2]
[421960290,1778373927000,155.89544001,9.714e-05,2]
[421960297,1778373928000,155.89544001,9.786e-05,2]
[421960298,1778373928000,155.89544001,9.797e-05,2]
[421960299,1778373928000,155.89544001,9.807e-05,2]
[421960301,1778373928000,155.89544001,9.828e-05,2]
[421960300,1778373928000,155.89544001,9.817e-05,2]
[421960302,1778373928000,155.89544001,9.838e-05,2]
[421960304,1778373928000,155.89544001,9.859e-05,2]
[421960305,1778373928000,155.89544001,9.869e-05,2]
[421960306,1778373928000,155.89544001,9.88e-05,2]
[421960307,1778373928000,155.89544001,9.89e-05,2]
[421960308,1778373928000,155.89544001,9.9e-05,2]
[421960309,1778373928000,155.89544001,9.911e-05,2]
[421960303,1778373928000,155.89544001,9.848e-05,2]
[421960312,1778373929000,155.89544001,9.942e-05,2]
[421960310,1778373929000,155.89544001,9.921e-05,2]
[421960314,1778373929000,155.89544001,9.963e-05,2]
[421960311,1778373929000,155.89544001,9.932e-05,2]
[421960315,1778373929000,155.89544001,9.973e-05,2]
[421960317,1778373929000,155.89544001,9.994e-05,2]
[421960313,1778373929000,155.89544001,9.952e-05,2]
[421960316,1778373929000,155.89544001,9.983e-05,2]
[421960351,1778373931000,-150.0,0.00010199,2]
[421960335,1778373931000,-155.89544001,0.00010098,2]
[421960329,1778373931000,-155.89544001,0.00010066,2]
[421960328,1778373931000,-155.89544001,0.00010056,2]
[421960327,1778373931000,-369.45408172,0.00010055,2]
[421960326,1778373931000,-150.0,0.00010054,2]
[421960333,1778373931000,-150.0,0.00010091,2]
[421960323,1778373931000,-155.89544001,0.00010035,2]
[421960325,1778373931000,-155.89544001,0.00010046,2]
[421960322,1778373931000,-481.55,0.00010027,2]
[421960324,1778373931000,-163.31,0.00010042,2]
[421960319,1778373931000,-155.89544001,0.00010015,2]
[421960320,1778373931000,-150.0,0.00010017,2]
[421960318,1778373931000,-155.89544001,0.00010004,2]
[421960321,1778373931000,-155.89544001,0.00010025,2]
[421960332,1778373931000,-155.89544001,0.00010087,2]
[421960330,1778373931000,-200.0,0.00010074,2]
[421960337,1778373931000,-1764.70861649,0.00010102,2]
[421960352,1778373931000,-2151.14940111,0.000102,2]
[421960349,1778373931000,-155.89544001,0.00010191,2]
[421960347,1778373931000,-155.89544001,0.0001017,2]
[421960334,1778373931000,-417.36646475,0.00010097,2]
[421960346,1778373931000,-150.0,0.00010164,2]
[421960348,1778373931000,-155.89544001,0.00010181,2]
[421960344,1778373931000,-155.89544001,0.0001016,2]
[421960341,1778373931000,-155.89544001,0.00010129,2]
[421960350,1778373931000,-1106.0,0.00010199,2]
[421960342,1778373931000,-155.89544001,0.00010139,2]
[421960343,1778373931000,-155.89544001,0.00010149,2]
[421960338,1778373931000,-155.89544001,0.00010108,2]
[421960340,1778373931000,-150.0,0.00010127,2]
[421960331,1778373931000,-155.89544001,0.00010077,2]
[421960339,1778373931000,-155.89544001,0.00010118,2]
[421960336,1778373931000,-225.39,0.00010102,2]
[421960345,1778373931000,-150.0,0.0001016,2]
[421960353,1778373936000,-175.73299873,0.000102,2]
[421960356,1778373983000,-8571.97119984,0.000102,2]
[421960354,1778373983000,-2537.67850016,0.000102,2]
[421960355,1778373983000,-3290.3503,0.000102,2]
[421960357,1778373983000,249.99,9.521e-05,2]
[421960360,1778374035000,-25.20297116,0.00010197,2]
[421960359,1778374035000,-417.36646475,0.000101,2]
[421960361,1778374055000,174.47,7.513e-05,2]
[421960362,1778374112000,846.71,9.402e-05,2]
[421960363,1778374148000,187.94100398,0.00014247,21]
[421960365,1778374156000,-202.68316187,0.00010099,2]
[421960364,1778374156000,-300.0,0.00010098,2]
[421960366,1778374161000,-396.53839297,0.00010099,2]
[421960368,1778374161000,-361.05446809,0.00010099,2]
[421960369,1778374161000,-500.0,0.00010099,2]
[421960370,1778374161000,-500.0,0.00010099,2]
[421960371,1778374161000,-500.0,0.00010099,2]
[421960377,1778374161000,-373.71547894,0.00010099,2]
[421960374,1778374161000,-500.0,0.00010099,2]
[421960373,1778374161000,-500.0,0.00010099,2]
[421960375,1778374161000,-500.0,0.00010099,2]
[421960376,1778374161000,-500.0,0.00010099,2]
[421960372,1778374161000,-500.0,0.00010099,2]
[421960367,1778374161000,-500.0,0.00010099,2]
[421960379,1778374171000,-10734.63165165,0.000101,2]
[421960378,1778374171000,-223.14100177,0.00010099,2]
[421960381,1778374232000,-108107.72087909,0.000101,2]
[421960387,1778374232000,-1449.40907944,0.000101,2]
[421960386,1778374232000,-1466.46,0.000101,2]
[421960385,1778374232000,-3008.1760204,0.000101,2]
[421960383,1778374232000,-66.87727449,0.000101,2]
[421960384,1778374232000,-3071.99700677,0.000101,2]
[421960380,1778374232000,-5868.41005784,0.000101,2]
[421960382,1778374232000,-552.3873477,0.000101,2]
[421960411,1778374238000,-27128.50850731,0.000101,2]
[421960412,1778374238000,-380.52932165,0.000101,2]
[421960427,1778374240000,-503.44057045,0.000101,2]
[421960448,1778374240000,-155.89544001,0.00010243,2]
[421960445,1778374240000,-155.89544001,0.00010232,2]
[421960443,1778374240000,-155.89544001,0.00010212,2]
[421960454,1778374240000,-500.0,0.00010273,2]
[421960444,1778374240000,-155.89544001,0.00010222,2]
[421960441,1778374240000,-150.0,0.00010201,2]
[421960442,1778374240000,-155.89544001,0.00010201,2]
[421960439,1778374240000,-1155.01765428,0.000102,2]
[421960438,1778374240000,-154.01481834,0.000102,2]
[421960437,1778374240000,-1066.73007956,0.000102,2]
[421960436,1778374240000,-51284.40110016,0.000102,2]
[421960435,1778374240000,-150.0,0.00010199,2]
[421960431,1778374240000,-202.71277132,0.000101,2]
[421960440,1778374240000,-10000.0,0.000102,2]
[421960434,1778374240000,-1000.0,0.00010199,2]
[421960430,1778374240000,-12239.68358532,0.000101,2]
[421960433,1778374240000,-2804.96742884,0.00010197,2]
[421960429,1778374240000,-718043.9038,0.000101,2]
[421960428,1778374240000,-2336987.57040379,0.000101,2]
[421960426,1778374240000,-673.88187942,0.000101,2]
[421960432,1778374240000,-180.5,0.000101,2]
[421960446,1778374240000,-150.0,0.00010237,2]
[421960452,1778374240000,-500.0,0.00010273,2]
[421960447,1778374240000,-321.67,0.0001024,2]
[421960450,1778374240000,-155.89544001,0.00010253,2]
[421960474,1778374240000,-500.0,0.00010772,2]
[421960473,1778374240000,-500.0,0.00010772,2]
[421960472,1778374240000,-500.0,0.00010772,2]
[421960471,1778374240000,-500.0,0.00010772,2]
[421960470,1778374240000,-500.0,0.00010772,2]
[421960468,1778374240000,-11179.17,0.00010568,2]
[421960467,1778374240000,-481.55,0.00010529,2]
[421960463,1778374240000,-1495.795,0.00010299,2]
[421960465,1778374240000,-150.0,0.000104,2]
[421960466,1778374240000,-1000.0,0.000104,2]
[421960469,1778374240000,-164.25,0.00010723,2]
[421960462,1778374240000,-645.55505471,0.00010299,2]
[421960451,1778374240000,-155.89544001,0.00010264,2]
[421960464,1778374240000,-193.46,0.00010341,2]
[421960449,1778374240000,-160.77743921,0.00010248,2]
[421960453,1778374240000,-601.61878338,0.00010273,2]
[421960456,1778374240000,-150.0,0.00010274,2]
[421960455,1778374240000,-577.10389741,0.00010273,2]
[421960457,1778374240000,-150.0,0.00010274,2]
[421960459,1778374240000,-481.55,0.00010278,2]
[421960460,1778374240000,-151.0,0.00010297,2]
[421960461,1778374240000,-150.0,0.00010298,2]
[421960458,1778374240000,-155.89544001,0.00010274,2]
[421960517,1778374241000,-150.0,0.00010989,2]
[421960510,1778374241000,-500.0,0.00010825,2]
[421960515,1778374241000,-150.0,0.00010959,2]
[421960516,1778374241000,-150.0,0.00010959,2]
[421960514,1778374241000,-2415.25769733,0.000109,2]
[421960508,1778374241000,-150.0,0.00010825,2]
[421960512,1778374241000,-507.11882834,0.00010825,2]
[421960509,1778374241000,-150.0,0.00010825,2]
[421960511,1778374241000,-150.0,0.00010825,2]
[421960506,1778374241000,-510.23889792,0.00010825,2]
[421960518,1778374241000,-481.55,0.0001103,2]
[421960513,1778374241000,-247.71841965,0.00010825,2]
[421960519,1778374241000,-500.0,0.00011046,2]
[421960534,1778374241000,-151.0,0.000126,2]
[421960522,1778374241000,-250.0,0.0001111,2]
[421960521,1778374241000,-250.0,0.00011108,2]
[421960529,1778374241000,-2080.17592889,0.000126,2]
[421960523,1778374241000,-255.0,0.00011209,2]
[421960525,1778374241000,-292.32,0.00011233,2]
[421960526,1778374241000,-1333.93,0.00012319,2]
[421960528,1778374241000,-262.22,0.00012329,2]
[421960527,1778374241000,-321.0,0.0001232,2]
[421960530,1778374241000,-151.0,0.000126,2]
[421960531,1778374241000,-200.0,0.000126,2]
[421960507,1778374241000,-150.0,0.00010825,2]
[421960532,1778374241000,-151.0,0.000126,2]
[421960535,1778374241000,-151.0,0.000126,2]
[421960520,1778374241000,-3077.40983939,0.00011099,2]
[421960505,1778374241000,-504.37215118,0.00010825,2]
[421960491,1778374241000,-456.80933954,0.00010772,2]
[421960502,1778374241000,-500.0,0.00010825,2]
[421960477,1778374241000,-500.0,0.00010772,2]
[421960476,1778374241000,-500.0,0.00010772,2]
[421960479,1778374241000,-500.0,0.00010772,2]
[421960475,1778374241000,-500.0,0.00010772,2]
[421960478,1778374241000,-500.0,0.00010772,2]
[421960480,1778374241000,-500.0,0.00010772,2]